bitfinex/quotes_SOLUSD_20250520
["timestamp","ask_amount","ask_price","bid_price","bid_amount"]
[1747706530980,20.52906328,170.49,170.39,0.28432314]
[1747706531160,5.86544665,170.49,170.44,35.2]
[1747706531361,5.86544665,170.49,170.45,0.28432314]
[1747706532391,5.86407083,170.53,170.48,0.28432314]
[1747706532777,0.11269653,170.5,170.49,17.88432314]
[1747706533379,0.11269653,170.5,170.45,0.28432314]
[1747706533590,21.95488882,170.5,170.44,17.6]
[1747706533896,21.84219229,170.49,170.42,17.6]
[1747706534258,5.8657907,170.48,170.45,26.0]
[1747706534461,5.8657907,170.48,170.43,0.28432314]
[1747706534688,5.8657907,170.48,170.45,26.0]
[1747706534988,5.8657907,170.48,170.43,0.28432314]
[1747706535669,5.8657907,170.48,170.45,26.0]
[1747706537592,42.37147767,170.49,170.45,26.0]
[1747706538490,21.84219229,170.48,170.45,26.0]
[1747706538696,21.84219229,170.47,170.43,26.0]
[1747706538991,21.84219229,170.47,170.4,0.28432314]
[1747706539396,42.37147767,170.49,170.4,0.14216157]
[1747706539602,42.37147767,170.49,170.4,0.28432314]
[1747706539887,20.52928538,170.49,170.4,0.28432314]
[1747706540877,5.86544665,170.49,170.46,26.0]
[1747706541189,5.86544665,170.49,170.47,0.28432314]
[1747706541393,18.64964886,170.47,170.36,1.5812]
[1747706541602,18.64964886,170.47,170.34,17.6]
[1747706541885,21.84219229,170.46,170.39,0.14216157]
[1747706542095,18.64964886,170.48,170.39,0.14216157]
[1747706542297,21.84219229,170.43,170.38,26.0]
[1747706542480,21.84219229,170.44,170.38,26.0]
[1747706542882,18.64964886,170.48,170.38,26.0]
[1747706542883,21.84219229,170.46,170.39,0.14216157]
[1747706543196,20.5314718,170.47,170.36,0.14216157]
[1747706543389,21.84219229,170.46,170.39,0.28432314]
[1747706543593,21.84219229,170.45,170.39,0.28432314]
[1747706543896,5.8661348,170.47,170.39,0.28432314]
[1747706544696,21.84219229,170.46,170.39,0.28432314]
[1747706545088,5.86647893,170.46,170.39,0.28432314]
[1747706546973,21.84219229,170.45,170.39,0.14216157]
[1747706547296,27.70935962,170.44,170.38,61.2]
[1747706547680,27.70935962,170.44,170.39,0.14216157]
[1747706548193,27.70935962,170.44,170.36,17.6]
[1747706548194,21.84219229,170.42,170.36,17.6]
[1747706548390,21.84219229,170.41,170.36,17.6]
[1747706548597,21.84219229,170.41,170.37,26.0]
[1747706549099,5.8685446,170.4,170.37,26.0]
[1747706550904,5.86820022,170.41,170.37,26.0]
[1747706551205,27.71039251,170.41,170.37,26.0]
[1747706551386,5.86820022,170.41,170.37,26.0]
[1747706551904,27.71039251,170.41,170.37,26.0]
[1747706552402,14.67021331,170.42,170.37,26.0]
[1747706552616,5.86716733,170.44,170.4,26.0]
[1747706552914,0.12289463,170.41,170.4,26.0]
[1747706554811,27.83328714,170.41,170.36,0.28432314]
[1747706555006,27.83328714,170.41,170.36,26.28432314]
[1747706555314,5.99109485,170.41,170.36,26.28432314]
[1747706555622,42.50378769,170.41,170.36,26.0]
[1747706555824,21.84219229,170.38,170.32,35.2]
[1747706556000,21.84219229,170.36,170.31,35.2]
[1747706556315,21.84219229,170.35,170.28,17.6]
[1747706556488,21.84219229,170.39,170.31,26.0]
[1747706556689,5.86992251,170.36,170.32,26.0]
[1747706557093,5.8685446,170.4,170.36,26.0]
[1747706557302,0.12289463,170.41,170.37,0.28432314]
[1747706560483,0.12289463,170.41,170.39,35.48432314]
[1747706562225,0.12289463,170.41,170.4,0.87094971]
[1747706562521,0.12289463,170.41,170.4,0.28432314]
[1747706562736,0.12289463,170.41,170.4,38.72109258]
[1747706562898,0.12289463,170.41,170.4,56.32109258]
[1747706568215,0.12289463,170.41,170.4,56.90768481]
[1747706571125,0.12289463,170.41,170.4,56.32109258]
[1747706572726,0.23290118,170.41,170.4,56.9076708]
[1747706573028,0.11000655,170.41,170.4,56.9076708]
[1747706574736,0.11000655,170.41,170.4,38.43676944]
[1747706574903,0.11000655,170.41,170.4,56.03676944]
[1747706575223,0.11000655,170.41,170.4,64.43676944]
[1747706575430,0.11000655,170.41,170.4,39.30782936]
[1747706575810,0.12233154,170.42,170.41,0.28432314]
[1747706576301,0.12233154,170.42,170.41,64.72109258]
[1747706577927,0.06364782,170.42,170.41,64.72109258]
[1747706578611,0.06364782,170.42,170.41,64.43676944]
[1747706579121,0.06364782,170.42,170.41,3.23676944]
[1747706579831,0.06364782,170.42,170.41,26.0]
[1747706581735,0.06364782,170.42,170.38,26.0]
[1747706582106,0.06364782,170.42,170.41,61.2]
[1747706582311,1e-08,170.42,170.41,61.48432314]
[1747706582621,0.11157646,170.44,170.42,0.28432314]
[1747706582819,0.11157646,170.44,170.43,61.48432314]
[1747706583131,13.61334315,170.54,170.43,61.48432314]
[1747706583132,0.0044385,170.47,170.46,61.48432314]
[1747706583436,0.0044385,170.47,170.46,79.08432314]
[1747706584422,0.0044385,170.47,170.46,82.31852765]
[1747706584943,0.0044385,170.47,170.46,118.62817651]
[1747706585129,1.5336,170.57,170.47,0.28432314]
[1747706585438,5.86317973,170.56,170.47,0.28432314]
[1747706585944,5.86349866,170.55,170.47,0.28432314]
[1747706586107,5.86435554,170.53,170.47,0.28432314]
[1747706586310,16.19080529,170.57,170.47,0.28432314]
[1747706586311,21.76906541,170.55,170.47,38.71852765]
[1747706586632,5.97327315,170.48,170.47,3.23420451]
[1747706588431,5.97327315,170.48,170.43,35.2]
[1747706588729,5.97327315,170.48,170.44,0.28432314]
[1747706589124,5.97327315,170.48,170.43,35.2]
[1747706592737,5.97327315,170.48,170.44,0.28432314]
[1747706592928,5.8657907,170.48,170.44,0.28432314]
[1747706593843,20.52716829,170.51,170.44,0.28432314]
[1747706594142,20.52716829,170.51,170.46,26.0]
[1747706594312,5.86475866,170.51,170.47,0.28432314]
[1747706594511,1.6114,170.53,170.47,0.28432314]
[1747706594714,5.86372698,170.54,170.51,26.0]
[1747706595122,5.86303939,170.56,170.52,0.28432314]
[1747706596543,21.76906541,170.55,170.49,35.2]
[1747706596750,21.76906541,170.55,170.5,26.0]
[1747706597248,21.76906541,170.54,170.48,43.58]
[1747706597918,21.76906541,170.55,170.48,43.58]
[1747706598148,5.86372698,170.54,170.48,43.58]
[1747706599155,5.86372698,170.54,170.49,0.28432314]
[1747706599651,5.86372698,170.54,170.48,78.78]
[1747706601438,5.86303939,170.56,170.51,26.0]
[1747706601955,7.51751153,170.57,170.52,0.28432314]
[1747706602442,29.28657694,170.57,170.51,61.2]
[1747706602845,21.76906541,170.56,170.51,26.0]
[1747706603148,5.86338317,170.55,170.51,26.0]
[1747706607447,5.86338317,170.55,170.5,26.0]
[1747706607647,5.86303939,170.56,170.5,26.0]
[1747706612978,5.86303939,170.56,170.51,35.17]
[1747706613986,5.86242483,170.58,170.52,0.28432314]
[1747706615876,5.86242483,170.58,170.51,35.17]
[1747706616058,13.60442745,170.55,170.51,26.0]
[1747706616661,13.60442745,170.54,170.48,35.17]
[1747706617269,18.64964886,170.57,170.46,20.86230994]
[1747706617270,19.46849828,170.53,170.47,35.17]
[1747706617460,18.64964886,170.58,170.48,0.14216157]
[1747706617763,5.86174152,170.6,170.56,0.28432314]
[1747706617961,5.8612544,170.62,170.55,61.17]
[1747706618370,5.8612544,170.62,170.56,0.28432314]
[1747706618679,5.86066561,170.63,170.56,0.28432314]
[1747706619653,21.26908893,170.68,170.6,26.28432314]
[1747706619860,5.85926056,170.67,170.6,61.45432314]
[1747706620372,6.4116,170.72,170.64,61.17]
[1747706620576,21.74408644,170.73,170.64,61.17]
[1747706620778,21.74408644,170.71,170.64,61.17]
[1747706621078,21.74408644,170.7,170.64,26.0]
[1747706621382,20.50020499,170.73,170.62,61.17]
[1747706621568,21.74408644,170.72,170.63,0.28432314]
[1747706621771,21.74408644,170.71,170.63,0.28432314]
[1747706622064,42.24429143,170.73,170.63,0.28432314]
[1747706623177,5.85720142,170.73,170.64,35.17]
[1747706623384,5.85720142,170.73,170.67,26.0]
[1747706623564,20.4978038,170.75,170.68,17.58]
[1747706624466,5.85651537,170.75,170.69,0.28432314]
[1747706625562,5.8561724,170.76,170.69,0.28432314]
[1747706625883,5.8561724,170.76,170.71,0.28432314]
[1747706626185,5.8561724,170.76,170.71,26.28432314]
[1747706626358,5.85514374,170.79,170.73,61.17]
[1747706628579,18.64964886,170.86,170.74,0.28432314]
[1747706628887,21.74408644,170.81,170.74,0.28432314]
[1747706629293,21.74408644,170.8,170.74,17.58]
[1747706629464,21.74408644,170.78,170.73,78.75]
[1747706629665,21.74408644,170.79,170.72,26.0]
[1747706629866,68.40089262,170.85,170.72,43.58]
[1747706630088,21.74408644,170.81,170.73,0.14216157]
[1747706630394,21.74408644,170.81,170.73,0.28432314]
[1747706631087,5.85480093,170.8,170.73,0.28432314]
[1747706631601,21.74408644,170.78,170.72,61.17]
[1747706631765,21.74408644,170.78,170.72,52.73]
[1747706632198,21.74408644,170.76,170.7,35.17]
[1747706632401,5.85480093,170.8,170.72,35.17]
[1747706632604,5.85137507,170.9,170.78,0.28432314]
[1747706632781,20.47981275,170.9,170.81,26.0]
[1747706632969,21.74408644,170.88,170.81,26.0]
[1747706633172,5.85240241,170.87,170.81,26.0]
[1747706633683,21.74408644,170.91,170.82,0.28432314]
[1747706633993,21.74408644,170.93,170.82,0.28432314]
[1747706634194,21.74408644,170.93,170.86,35.45432314]
[1747706634684,21.74408644,170.91,170.86,52.73]
[1747706634997,21.74408644,170.89,170.82,0.28432314]
[1747706635172,27.59614636,170.88,170.82,26.0]
[1747706635370,42.22629617,170.88,170.82,26.0]
[1747706635596,20.48220973,170.88,170.82,26.0]
[1747706635775,21.74408644,170.87,170.82,26.0]
[1747706635987,20.48220973,170.88,170.8,17.84432314]
[1747706635988,21.74408644,170.85,170.8,43.56]
[1747706636179,21.74408644,170.84,170.79,17.56]
[1747706636495,21.74408644,170.84,170.79,43.56]
[1747706636873,20.48220973,170.88,170.79,43.56]
[1747706637073,5.8530875,170.85,170.79,43.56]
[1747706637270,5.8530875,170.85,170.8,0.28432314]
[1747706637601,5.85240241,170.87,170.82,26.0]
[1747706638801,20.48340843,170.87,170.82,26.0]
[1747706638997,21.74408644,170.84,170.78,0.14216157]
[1747706639193,5.85377275,170.83,170.78,0.28432314]
[1747706639496,5.85377275,170.83,170.8,26.0]
[1747706640799,5.85377275,170.83,170.77,78.73]
[1747706641191,49.73959855,170.89,170.78,0.14216157]
[1747706641398,21.74408644,170.85,170.78,0.28432314]
[1747706641900,5.85171747,170.89,170.83,0.28432314]
[1747706643124,5.85171747,170.89,170.82,61.17]
[1747706643125,27.59580391,170.89,170.82,61.17]
[1747706643708,5.85171747,170.89,170.82,61.17]
[1747706644714,20.48101116,170.89,170.82,61.17]
[1747706645004,5.85171747,170.89,170.83,0.28432314]
[1747706645810,21.74408644,170.91,170.83,0.28432314]
[1747706646103,21.74408644,170.89,170.82,61.17]
[1747706646312,21.74408644,170.88,170.82,61.17]
[1747706646609,21.74408644,170.89,170.82,61.17]
[1747706647308,21.74408644,170.87,170.82,26.0]
[1747706647512,21.74408644,170.86,170.82,26.0]
[1747706647686,21.74408644,170.84,170.77,17.56]
[1747706647893,21.74408644,170.83,170.77,17.56]
[1747706648213,21.74408644,170.83,170.76,26.0]
[1747706648399,21.74408644,170.84,170.76,43.56]
[1747706648599,20.48220973,170.88,170.77,0.28432314]
[1747706649008,21.74408644,170.86,170.77,0.28432314]
[1747706649201,5.8530875,170.85,170.77,0.28432314]
[1747706649601,21.74408644,170.84,170.77,0.28432314]
[1747706649800,27.59717394,170.85,170.77,0.28432314]
[1747706650922,42.22989269,170.85,170.77,0.28432314]
[1747706652405,5.8530875,170.85,170.77,0.28432314]
[1747706653228,21.74408644,170.84,170.77,0.28432314]
[1747706654727,5.85377275,170.83,170.77,0.28432314]
[1747706655026,27.59785919,170.83,170.76,61.17]
[1747706655211,27.59785919,170.83,170.77,17.56]
[1747706655892,5.85377275,170.83,170.77,52.73]
[1747706656100,27.59785919,170.83,170.77,52.73]
[1747706656408,5.85377275,170.83,170.78,0.28432314]
[1747706656610,14.6296952,170.89,170.8,26.0]
[1747706656796,21.74408644,170.86,170.8,26.0]
[1747706657019,21.74408644,170.85,170.8,26.0]
[1747706657615,21.74408644,170.84,170.8,26.0]
[1747706657929,21.74408644,170.83,170.8,26.0]
[1747706658125,21.74408644,170.84,170.8,26.0]
[1747706658306,68.38964892,170.89,170.8,26.0]
[1747706658516,21.74408644,170.85,170.8,26.0]
[1747706659399,18.64964886,170.88,170.78,0.28432314]
[1747706659707,21.74408644,170.85,170.78,0.28432314]
[1747706659906,21.74408644,170.83,170.78,26.0]
[1747706660112,21.74408644,170.83,170.77,52.73]
[1747706660509,27.59751655,170.84,170.77,52.73]
[1747706660714,27.59751655,170.84,170.78,26.0]
[1747706661026,21.74408644,170.83,170.78,26.0]
[1747706662130,5.85411544,170.82,170.78,26.0]
[1747706663206,5.85385707,170.83,170.78,26.0]
[1747706664229,5.85343011,170.84,170.78,26.0]
[1747706664610,5.85343011,170.84,170.8,26.0]
[1747706665031,27.59751655,170.84,170.8,26.0]
[1747706666631,21.74408644,170.85,170.8,26.0]
[1747706667027,27.59614636,170.88,170.8,61.17]
[1747706667531,5.85205992,170.88,170.81,0.28432314]
[1747706668635,13.55324652,170.87,170.8,61.17]
[1747706668838,5.85205992,170.88,170.81,0.28432314]
[1747706669336,19.40498927,170.89,170.83,61.17]
[1747706669509,13.55324652,170.88,170.83,78.73]
[1747706669709,21.69024448,170.88,170.83,43.56]
[1747706670926,5.85240241,170.87,170.83,43.56]
[1747706671126,5.85240241,170.87,170.83,17.56]
[1747706671127,21.69024448,170.85,170.83,17.56]
[1747706671436,21.69024448,170.92,170.86,26.0]
[1747706672213,21.69024448,170.93,170.87,0.28432314]
[1747706672522,5.85000585,170.94,170.87,0.28432314]
[1747706672725,27.54025033,170.94,170.87,0.28432314]
[1747706673163,5.85000585,170.94,170.87,0.28432314]
[1747706673327,27.53999549,170.95,170.87,0.28432314]
[1747706674007,21.69024448,170.94,170.87,0.28432314]
[1747706675037,5.85034809,170.93,170.87,0.28432314]
[1747706675233,21.69024448,170.9,170.82,42.9024]
[1747706675447,21.69024448,170.89,170.83,20.77751603]
[1747706675634,21.69024448,170.88,170.84,26.0]
[1747706676027,21.69024448,170.87,170.83,20.77751603]
[1747706676345,21.69024448,170.84,170.83,3.21751603]
[1747706676640,21.69024448,170.84,170.78,26.0]
[1747706676862,21.69024448,170.83,170.78,26.0]
[1747706677060,5.85411544,170.82,170.77,35.17]
[1747706677231,42.17964852,170.82,170.77,35.17]
[1747706677430,42.17964852,170.82,170.74,36.88]
[1747706677431,20.48940404,170.82,170.74,36.88]
[1747706677638,5.85411544,170.82,170.78,26.0]
[1747706677838,36.32078621,170.88,170.79,0.28432314]
[1747706678050,21.69024448,170.88,170.79,0.28432314]
[1747706679034,5.85238008,170.88,170.79,0.28432314]
[1747706679741,5.85238008,170.88,170.83,26.0]
[1747706680153,5.85171747,170.89,170.85,26.0]
[1747706680331,27.54059257,170.93,170.85,26.0]
[1747706680531,5.85034809,170.93,170.86,0.28432314]
[1747706682170,27.54025033,170.94,170.86,0.28432314]
[1747706682651,27.54025033,170.94,170.87,3.22318753]
[1747706683661,5.85000585,170.94,170.88,0.28432314]
[1747706684540,27.54025033,170.94,170.88,0.28432314]
[1747706685555,42.16526495,170.94,170.86,0.28432314]
[1747706685863,21.69024448,170.91,170.83,52.71]
[1747706686059,21.69024448,170.91,170.82,7.7726]
[1747706686275,21.69024448,170.9,170.82,25.3126]
[1747706686761,21.69024448,170.9,170.85,26.0]
[1747706687157,21.69024448,170.9,170.82,25.3126]
[1747706687364,5.85171747,170.89,170.85,26.0]
[1747706687538,21.69024448,170.93,170.85,26.0]
[1747706687739,6.3301,170.99,170.82,25.3126]
[1747706687740,20.24409085,171.0,170.9,36.0]
[1747706688059,5.84521861,171.08,171.02,26.0]
[1747706688444,19.24409091,171.09,171.02,61.17]
[1747706688857,19.24409091,171.09,171.03,0.28432314]
[1747706689644,19.24409091,171.09,171.08,61.17]
[1747706689966,9.01371097,171.12,171.08,61.17]
[1747706689967,9.01371097,171.12,171.09,0.28432314]
[1747706691368,14.85765069,171.12,171.08,61.17]
[1747706692661,9.01371097,171.12,171.09,0.28432314]
[1747706693367,9.01371097,171.12,171.08,61.17]
[1747706693368,14.85762619,171.12,171.08,61.17]
[1747706693661,36.54787067,171.12,171.08,26.0]
[1747706693862,29.46725685,171.12,171.05,78.99432314]
[1747706694061,20.45354588,171.12,171.05,78.99432314]
[1747706695264,20.45354588,171.12,171.05,78.71]
[1747706695563,20.45706937,171.09,171.05,17.54]
[1747706696141,20.45706937,171.09,171.03,17.54]
[1747706697350,42.14731385,171.09,171.02,78.71]
[1747706697673,21.69024448,171.04,170.99,17.54]
[1747706697879,21.69024448,171.01,170.94,17.54]
[1747706698057,21.69024448,170.99,170.94,17.54]
[1747706698451,18.64964886,171.04,170.93,26.0]
[1747706698650,21.69024448,171.0,170.92,52.71]
[1747706699158,19.66,171.05,170.92,52.71]
[1747706699353,21.69024448,171.02,170.93,26.0]
[1747706699566,5.84761125,171.01,170.94,35.17]
[1747706700152,27.53785573,171.01,170.94,35.17]
[1747706700671,21.69024448,171.0,170.94,35.17]
[1747706700866,5.84761125,171.01,170.94,35.17]
[1747706701074,27.53785573,171.01,170.94,35.17]
[1747706701449,27.5385397,170.99,170.94,35.17]
[1747706701845,21.69024448,170.96,170.9,19.66]
[1747706702177,21.69024448,170.93,170.87,17.54]
[1747706702683,18.64964886,170.98,170.87,17.54]
[1747706702883,21.69024448,170.95,170.87,17.54]
[1747706703480,5.85034809,170.93,170.87,17.54]
[1747706704461,27.54059257,170.93,170.87,17.54]
[1747706704974,21.69024448,170.91,170.86,26.0]
[1747706705279,21.69024448,170.9,170.83,17.54]
[1747706705461,5.85171747,170.89,170.83,17.54]
[1747706705961,5.85000585,170.94,170.82,72.37]
[1747706706163,42.16535993,170.94,170.83,0.28432314]
[1747706706374,20.47511545,170.94,170.85,26.0]
[1747706706678,42.16535993,170.94,170.85,26.0]
[1747706706884,27.54025033,170.94,170.86,0.28432314]
[1747706707373,27.54025033,170.94,170.85,61.17]
[1747706707574,21.69024448,170.93,170.85,61.17]
[1747706708256,21.69024448,170.92,170.85,61.17]
[1747706709067,21.69024448,170.93,170.85,61.17]
[1747706709753,5.85069038,170.92,170.85,61.17]
[1747706710372,5.85069038,170.92,170.86,0.14216157]
[1747706710570,5.84658559,171.04,170.94,26.0]
[1747706710756,25.57719091,171.18,170.98,26.0]
[1747706710757,5.84316933,171.14,170.98,26.0]
[1747706710955,20.45109266,171.14,170.99,0.28432314]
[1747706711286,21.69024448,171.1,170.99,0.28432314]
[1747706711590,27.53546309,171.08,170.99,0.28432314]
[1747706711787,21.69024448,171.07,170.98,61.17]
[1747706711955,21.69024448,171.06,170.98,26.0]
[1747706712159,21.69024448,171.01,170.95,17.54]
[1747706712385,21.69024448,170.99,170.87,7.8382]
[1747706712654,21.69024448,170.98,170.94,26.0]
[1747706712869,21.69024448,171.0,170.94,26.0]
[1747706713075,21.69024448,171.01,170.94,26.0]
[1747706713463,27.53806383,171.01,170.94,26.0]
[1747706713664,37.83671732,171.01,170.94,26.0]
[1747706715697,31.98889797,171.0,170.94,26.0]
[1747706717082,5.84692743,171.03,170.95,35.45432314]
[1747706717283,31.98889797,171.02,170.95,35.17]
[1747706717788,5.84761125,171.01,170.95,35.17]
[1747706718086,31.98889797,171.0,170.95,35.17]
[1747706718277,37.83650922,171.01,170.95,35.17]
[1747706718787,31.98889797,170.97,170.88,35.17]
[1747706719091,20.46663937,171.01,170.92,26.0]
[1747706719300,31.98889797,170.98,170.92,26.0]
[1747706719473,20.46663937,171.01,170.91,17.54]
[1747706719474,31.98889797,170.94,170.91,17.54]
[1747706719796,5.84863726,170.98,170.91,52.71]
[1747706719981,5.84863726,170.98,170.94,26.0]
[1747706720290,5.84828058,171.0,170.94,26.0]
[1747706720476,6.5854,171.05,170.94,61.17]
[1747706720677,5.84658559,171.04,170.95,0.28432314]
[1747706721088,37.83548356,171.04,170.95,0.28432314]
[1747706721384,31.98889797,171.04,170.95,0.28432314]
[1747706721574,37.83518017,171.05,170.95,0.28432314]
[1747706721771,31.98889797,171.04,170.99,26.0]
[1747706722480,31.98889797,171.04,170.97,35.17]
[1747706722670,37.83518017,171.05,170.97,35.17]
[1747706723087,5.8462822,171.05,170.97,35.17]
[1747706723288,37.83518017,171.05,170.97,35.17]
[1747706724087,5.84521861,171.08,171.01,61.17]
[1747706724666,5.84492989,171.09,171.01,61.17]
[1747706724868,5.84492989,171.09,171.01,142.07]
[1747706725671,38.54964886,171.14,171.02,0.28432314]
[1747706725672,5.84351078,171.13,171.02,0.28432314]
[1747706725886,37.83240875,171.13,171.02,0.28432314]
[1747706726073,37.83240875,171.13,171.05,61.17]
[1747706726281,5.84351078,171.13,171.05,159.61]
[1747706726594,19.24409091,171.18,171.06,0.28432314]
[1747706726974,51.23298888,171.18,171.06,0.28432314]
[1747706727297,5.84246728,171.17,171.06,0.28432314]
[1747706728497,19.24409091,171.18,171.06,0.28432314]
[1747706728803,25.08597313,171.18,171.06,0.28432314]
[1747706729878,25.08597313,171.18,171.1,61.17]
[1747706730073,25.08597313,171.18,171.11,0.28432314]
[1747706730273,25.08597313,171.18,171.12,17.52]
[1747706732813,57.0748711,171.18,171.12,17.52]
[1747706733108,31.98889797,171.13,171.05,17.52]
[1747706733400,31.98889797,171.09,171.05,17.52]
[1747706733584,31.98889797,171.07,171.0,6.4535]
[1747706733787,21.64395188,171.05,170.99,17.52]
[1747706734172,21.64395188,171.05,170.99,43.52]
[1747706734592,21.64395188,171.05,170.99,17.52]
[1747706734798,21.64395188,171.04,170.99,17.52]
[1747706735001,21.64395188,171.05,170.99,17.52]
[1747706735187,21.64395188,171.06,170.99,17.52]
[1747706735696,31.97405545,171.06,170.98,26.0]
[1747706735897,31.97405545,171.06,170.98,17.52]
[1747706736407,31.97405545,171.05,170.98,43.52]
[1747706736791,5.84658559,171.04,170.98,43.52]
[1747706736982,5.84658559,171.04,170.9,17.52]
[1747706736983,31.97405545,170.99,170.9,17.52]
[1747706737192,31.97405545,170.99,170.93,26.0]
[1747706737615,31.97405545,170.98,170.93,26.0]
[1747706737984,31.97405545,170.99,170.93,26.0]
[1747706738197,26.93224957,171.04,170.93,26.0]
[1747706738397,31.97405545,171.02,170.94,0.28432314]
[1747706738601,31.97405545,170.98,170.9,52.69]
[1747706738791,5.84897935,170.97,170.9,52.69]
[1747706739511,5.84897935,170.97,170.93,26.0]
[1747706740008,52.44548318,170.97,170.91,26.0]
[1747706740814,31.97405545,170.96,170.9,17.52]
[1747706741116,31.97405545,170.94,170.85,52.71]
[1747706741412,31.97405545,170.94,170.88,26.0]
[1747706742111,31.97405545,170.91,170.85,17.54]
[1747706742489,31.97405545,170.89,170.82,19.88]
[1747706742689,31.97405545,170.89,170.82,17.54]
[1747706742889,37.82611537,170.88,170.82,43.54]
[1747706743187,5.85205992,170.88,170.82,43.54]
[1747706743602,5.85205992,170.88,170.82,17.54]
[1747706744111,37.82611537,170.88,170.78,6.5861]
[1747706744317,37.82611537,170.88,170.78,17.54]
[1747706744318,31.97405545,170.86,170.78,17.54]
[1747706744618,31.97405545,170.8,170.7,17.54]
[1747706744794,5.85514374,170.79,170.7,17.54]
[1747706744990,31.97405545,170.82,170.7,17.54]
[1747706745215,31.97405545,170.83,170.71,35.17]
[1747706745596,31.97405545,170.81,170.71,35.17]
[1747706745790,31.97405545,170.79,170.7,17.54]
[1747706746197,31.97405545,170.8,170.73,26.0]
[1747706746708,18.64964886,170.83,170.71,0.14216157]
[1747706746911,5.85514374,170.79,170.73,26.0]
[1747706747098,5.85514374,170.79,170.71,0.14216157]
[1747706747410,5.85514374,170.79,170.73,26.0]
[1747706747613,52.46705854,170.79,170.7,17.68216157]
[1747706747927,31.97405545,170.78,170.7,0.14216157]
[1747706748107,31.97405545,170.78,170.69,43.54]
[1747706748424,20.49300309,170.79,170.69,43.54]
[1747706748425,20.49300309,170.79,170.7,0.14216157]
[1747706748594,5.85514374,170.79,170.7,0.14216157]
[1747706748919,5.8561724,170.76,170.7,0.28432314]
[1747706749410,5.8561724,170.76,170.71,26.0]
[1747706750122,31.97405545,170.74,170.69,17.54]
[1747706750326,31.97405545,170.72,170.62,1.6629]
[1747706750511,18.64964886,170.75,170.65,17.54]
[1747706750819,18.64964886,170.75,170.6,37.56]
[1747706750820,31.97405545,170.67,170.6,37.56]
[1747706751002,37.83339746,170.67,170.63,26.0]
[1747706751510,6.4896,170.74,170.64,0.28432314]
[1747706751702,5.85548659,170.78,170.64,35.45432314]
[1747706751903,5.85548659,170.78,170.68,0.28432314]
[1747706751904,31.97405545,170.77,170.68,0.28432314]
[1747706752206,31.97405545,170.77,170.68,17.54]
[1747706752519,31.97405545,170.76,170.72,26.0]
[1747706752812,31.97405545,170.76,170.69,35.17]
[1747706753017,5.85651537,170.75,170.72,26.0]
[1747706753191,18.64964886,170.8,170.72,26.0]
[1747706753391,5.85480093,170.8,170.72,26.0]
[1747706753598,37.82885638,170.8,170.72,61.17]
[1747706754296,5.85480093,170.8,170.72,61.17]
[1747706754499,37.8285062,170.82,170.73,0.28432314]
[1747706754906,31.97405545,170.81,170.73,0.28432314]
[1747706755100,37.8286257,170.81,170.73,0.28432314]
[1747706755517,31.97405545,170.79,170.72,61.17]
[1747706755913,31.97405545,170.8,170.72,61.17]
[1747706756108,5.85408081,170.83,170.73,0.28432314]
[1747706756994,5.85445816,170.81,170.73,0.28432314]
[1747706757200,31.97405545,170.79,170.72,81.21]
[1747706757407,39.14025244,170.81,170.72,26.0]
[1747706757608,31.97405545,170.8,170.72,26.0]
[1747706758001,5.85445816,170.81,170.73,0.28432314]
[1747706758425,31.97405545,170.8,170.73,0.28432314]
[1747706758807,31.97405545,170.78,170.72,26.0]
[1747706759014,5.85343011,170.84,170.72,35.17]
[1747706759315,31.97405545,170.81,170.73,0.28432314]
[1747706759616,31.97405545,170.82,170.75,26.0]
[1747706760224,31.97405545,170.78,170.71,17.56]
[1747706760520,31.97405545,170.76,170.71,17.56]
[1747706760727,31.97405545,170.76,170.69,61.17]
[1747706760897,31.97405545,170.76,170.69,35.17]
[1747706761300,31.97405545,170.75,170.69,61.17]
[1747706761798,31.97405545,170.76,170.69,61.17]
[1747706762198,5.85651537,170.75,170.69,35.17]
[1747706762500,31.97405545,170.8,170.72,26.0]
[1747706762825,5.8530875,170.85,170.73,0.28432314]